[Event "Early Titled Tuesday Blitz | February 8 2022"]
[White "Iskusnyh, Sergei"]
[Black "Ljukin, Sergei"]
[WhiteFideId "4120027"]
[BlackFideId "14102200"]
[WhiteElo "2492"]
[BlackElo "2312"]
[Result "1-0"]
[Round "05"]
[TimeControl "180+1"]
[Date "2022.02.08"]
[WhiteClock "0:00:43"]
[BlackClock "0:00:53"]

1. d4 {[%clk 0:03:00]}  d5 {[%clk 0:02:57]} 2. c4 {[%clk 0:03:00]}  c6 {[%clk 0:02:56]} 3. Nf3 {[%clk 0:03:00]}  Nf6 {[%clk 0:02:57]} 4. e3 {[%clk 0:03:01]}  e6 {[%clk 0:02:56]} 5. Bd3 {[%clk 0:02:59]}  dxc4 {[%clk 0:02:55]} 6. Bxc4 {[%clk 0:02:58]}  b5 {[%clk 0:02:56]} 7. Be2 {[%clk 0:02:51]}  a6 {[%clk 0:02:56]} 8. O-O {[%clk 0:02:49]}  Bb7 {[%clk 0:02:54]} 9. Nc3 {[%clk 0:02:48]}  Nbd7 {[%clk 0:02:51]} 10. e4 {[%clk 0:02:33]}  c5 {[%clk 0:02:51]} 11. d5 {[%clk 0:02:31]}  exd5 {[%clk 0:02:51]} 12. e5 {[%clk 0:02:27]}  Ne4 {[%clk 0:02:46]} 13. Nxd5 {[%clk 0:02:26]}  Nxe5 {[%clk 0:02:44]} 14. Nxe5 {[%clk 0:02:16]}  Qxd5 {[%clk 0:02:44]} 15. Qxd5 {[%clk 0:02:15]}  Bxd5 {[%clk 0:02:44]} 16. Rd1 {[%clk 0:02:05]}  Rd8 {[%clk 0:02:35]} 17. a4 {[%clk 0:02:02]}  c4 {[%clk 0:02:24]} 18. Be3 {[%clk 0:01:56]}  Bc5 {[%clk 0:02:18]} 19. Bxc5 {[%clk 0:01:53]}  Nxc5 {[%clk 0:02:18]} 20. axb5 {[%clk 0:01:53]}  axb5 {[%clk 0:02:18]} 21. Ra5 {[%clk 0:01:36]}  O-O {[%clk 0:02:14]} 22. Rxb5 {[%clk 0:01:35]}  Nd3 {[%clk 0:01:53]} 23. Nxd3 {[%clk 0:01:27]}  cxd3 {[%clk 0:01:43]} 24. Rxd3 {[%clk 0:01:25]}  Be4 {[%clk 0:01:32]} 25. Rxd8 {[%clk 0:01:23]}  Rxd8 {[%clk 0:01:33]} 26. f3 {[%clk 0:01:23]}  Bg6 {[%clk 0:01:29]} 27. Kf2 {[%clk 0:01:06]}  Kf8 {[%clk 0:01:26]} 28. Ke3 {[%clk 0:01:04]}  Re8+ {[%clk 0:01:19]} 29. Kd2 {[%clk 0:01:03]}  Rd8+ {[%clk 0:01:18]} 30. Kc3 {[%clk 0:01:03]}  Re8 {[%clk 0:01:18]} 31. Bc4 {[%clk 0:01:03]}  Re1 {[%clk 0:01:16]} 32. Rb7 {[%clk 0:00:58]}  Rg1 {[%clk 0:01:11]} 33. g4 {[%clk 0:00:57]}  h5 {[%clk 0:01:11]} 34. gxh5 {[%clk 0:00:51]}  Bxh5 {[%clk 0:01:10]} 35. b4 {[%clk 0:00:52]}  Rc1+ {[%clk 0:01:01]} 36. Kd4 {[%clk 0:00:51]}  Rd1+ {[%clk 0:01:01]} 37. Ke3 {[%clk 0:00:49]}  Rc1 {[%clk 0:00:58]} 38. Bd5 {[%clk 0:00:48]}  Rc3+ {[%clk 0:00:56]} 39. Kd4 {[%clk 0:00:47]}  Rc2 {[%clk 0:00:54]} 40. b5 {[%clk 0:00:46]}  Rd2+ {[%clk 0:00:54]} 41. Kc4 {[%clk 0:00:43]}  Rxd5 {[%clk 0:00:54]} 42. Rb8+ {[%clk 0:00:43]}  Ke7 {[%clk 0:00:53]} 43. Kxd5 {[%clk 0:00:44]}  Bxf3+ {[%clk 0:00:53]} 44. Ke5 {[%clk 0:00:43]} 1-0


[Site "https://www.chess.com"]

[Event "Early Titled Tuesday Blitz | February 8 2022"]
[White "Izoria, Zviad"]
[Black "Agibileg, Uurtsaikh"]
[WhiteFideId "13601733"]
[BlackFideId "4901606"]
[WhiteElo "2626"]
[BlackElo "2205"]
[Result "0-1"]
[Round "05"]
[TimeControl "180+1"]
[Date "2022.02.08"]
[WhiteClock "0:00:05"]
[BlackClock "0:00:14"]

1. Nf3 {[%clk 0:03:00]}  Nf6 {[%clk 0:02:59]} 2. c4 {[%clk 0:03:00]}  g6 {[%clk 0:02:58]} 3. g3 {[%clk 0:02:57]}  Bg7 {[%clk 0:02:58]} 4. Bg2 {[%clk 0:02:58]}  O-O {[%clk 0:02:58]} 5. O-O {[%clk 0:02:58]}  c5 {[%clk 0:02:58]} 6. Nc3 {[%clk 0:02:58]}  Nc6 {[%clk 0:02:58]} 7. d4 {[%clk 0:02:58]}  d6 {[%clk 0:02:55]} 8. dxc5 {[%clk 0:02:53]}  dxc5 {[%clk 0:02:56]} 9. Bf4 {[%clk 0:02:50]}  Nd7 {[%clk 0:02:43]} 10. Qc1 {[%clk 0:02:43]}  Nd4 {[%clk 0:02:25]} 11. Nxd4 {[%clk 0:02:11]}  cxd4 {[%clk 0:02:24]} 12. Nd5 {[%clk 0:02:11]}  e6 {[%clk 0:02:03]} 13. Bc7 {[%clk 0:01:30]}  Qe8 {[%clk 0:02:00]} 14. Nf4 {[%clk 0:01:29]}  Qe7 {[%clk 0:01:33]} 15. Nd3 {[%clk 0:01:27]}  Nc5 {[%clk 0:01:19]} 16. Ba5 {[%clk 0:01:01]}  Re8 {[%clk 0:00:53]} 17. Qd2 {[%clk 0:00:47]}  Rb8 {[%clk 0:00:47]} 18. Nxc5 {[%clk 0:00:44]}  Qxc5 {[%clk 0:00:47]} 19. Rac1 {[%clk 0:00:33]}  e5 {[%clk 0:00:37]} 20. Bb4 {[%clk 0:00:27]}  Qc7 {[%clk 0:00:35]} 21. Rfd1 {[%clk 0:00:26]}  e4 {[%clk 0:00:31]} 22. Qf4 {[%clk 0:00:22]}  Qxf4 {[%clk 0:00:30]} 23. gxf4 {[%clk 0:00:23]}  Bg4 {[%clk 0:00:30]} 24. Rd2 {[%clk 0:00:22]}  e3 {[%clk 0:00:20]} 25. fxe3 {[%clk 0:00:21]}  dxe3 {[%clk 0:00:21]} 26. Rdc2 {[%clk 0:00:21]}  Bf5 {[%clk 0:00:21]} 27. Bd6 {[%clk 0:00:18]}  Rbd8 {[%clk 0:00:21]} 28. c5 {[%clk 0:00:17]}  Bxc2 {[%clk 0:00:20]} 29. Rxc2 {[%clk 0:00:18]}  b6 {[%clk 0:00:19]} 30. Bc6 {[%clk 0:00:14]}  Re6 {[%clk 0:00:19]} 31. Bd5 {[%clk 0:00:14]}  Rf6 {[%clk 0:00:15]} 32. Bf3 {[%clk 0:00:08]}  bxc5 {[%clk 0:00:15]} 33. Bxc5 {[%clk 0:00:07]}  Rc8 {[%clk 0:00:15]} 34. b4 {[%clk 0:00:07]}  Re6 {[%clk 0:00:14]} 35. f5 {[%clk 0:00:05]}  gxf5 {[%clk 0:00:14]} 36. Rc4 {[%clk 0:00:05]}  Bf8 {[%clk 0:00:14]} 0-1


[Site "https://www.chess.com"]

[Event "Early Titled Tuesday Blitz | February 8 2022"]
[White "Kalogridis, Antonios"]
[Black "Hua, Lefong"]
[WhiteFideId "25833901"]
[BlackFideId "2602253"]
[WhiteElo "1495"]
[BlackElo "2541"]
[Result "0-1"]
[Round "05"]
[TimeControl "180+1"]
[Date "2022.02.08"]
[WhiteClock "0:01:30"]
[BlackClock "0:01:37"]

1. d4 {[%clk 0:03:00]}  Nf6 {[%clk 0:02:59]} 2. c4 {[%clk 0:03:01]}  g6 {[%clk 0:03:00]} 3. Nc3 {[%clk 0:03:01]}  Bg7 {[%clk 0:03:00]} 4. e4 {[%clk 0:03:00]}  d6 {[%clk 0:03:01]} 5. h3 {[%clk 0:03:00]}  O-O {[%clk 0:03:01]} 6. Nf3 {[%clk 0:03:00]}  c5 {[%clk 0:03:01]} 7. d5 {[%clk 0:02:51]}  e6 {[%clk 0:03:01]} 8. Be2 {[%clk 0:02:50]}  exd5 {[%clk 0:03:00]} 9. exd5 {[%clk 0:02:50]}  Re8 {[%clk 0:02:55]} 10. O-O {[%clk 0:02:49]}  Ne4 {[%clk 0:02:52]} 11. Nxe4 {[%clk 0:02:49]}  Rxe4 {[%clk 0:02:53]} 12. Bd3 {[%clk 0:02:48]}  Re8 {[%clk 0:02:54]} 13. Qc2 {[%clk 0:02:45]}  Nd7 {[%clk 0:02:52]} 14. Bf4 {[%clk 0:02:45]}  Ne5 {[%clk 0:02:50]} 15. Nxe5 {[%clk 0:02:45]}  Bxe5 {[%clk 0:02:50]} 16. Bxe5 {[%clk 0:02:45]}  Rxe5 {[%clk 0:02:51]} 17. Rae1 {[%clk 0:02:45]}  Qe7 {[%clk 0:02:44]} 18. Rxe5 {[%clk 0:02:44]}  Qxe5 {[%clk 0:02:45]} 19. Qc3 {[%clk 0:02:37]}  Qxc3 {[%clk 0:02:36]} 20. bxc3 {[%clk 0:02:37]}  Bd7 {[%clk 0:02:36]} 21. Rb1 {[%clk 0:02:33]}  b6 {[%clk 0:02:36]} 22. Re1 {[%clk 0:02:32]}  Kf8 {[%clk 0:02:36]} 23. f4 {[%clk 0:02:31]}  Re8 {[%clk 0:02:32]} 24. Kf2 {[%clk 0:02:30]}  Rxe1 {[%clk 0:02:32]} 25. Kxe1 {[%clk 0:02:31]}  Ke7 {[%clk 0:02:32]} 26. Kd2 {[%clk 0:02:30]}  Kd8 {[%clk 0:02:30]} 27. Ke3 {[%clk 0:02:29]}  Kc7 {[%clk 0:02:22]} 28. f5 {[%clk 0:02:25]}  g5 {[%clk 0:02:08]} 29. f6 {[%clk 0:02:20]}  h6 {[%clk 0:02:08]} 30. Kf3 {[%clk 0:02:08]}  Kd8 {[%clk 0:02:04]} 31. Ke3 {[%clk 0:02:05]}  Ba4 {[%clk 0:02:01]} 32. Bf5 {[%clk 0:02:02]}  Bd1 {[%clk 0:01:56]} 33. Bg4 {[%clk 0:01:59]}  Bxg4 {[%clk 0:01:48]} 34. hxg4 {[%clk 0:02:00]}  Ke8 {[%clk 0:01:44]} 35. Ke4 {[%clk 0:02:00]}  Kf8 {[%clk 0:01:44]} 36. Kf5 {[%clk 0:01:50]}  Kg8 {[%clk 0:01:43]} 37. Ke4 {[%clk 0:01:51]}  Kh8 {[%clk 0:01:43]} 38. Kf5 {[%clk 0:01:48]}  Kh7 {[%clk 0:01:43]} 39. g3 {[%clk 0:01:44]}  Kg8 {[%clk 0:01:36]} 40. Ke4 {[%clk 0:01:44]}  Kh8 {[%clk 0:01:37]} 41. Kf5 {[%clk 0:01:36]}  Kh7 {[%clk 0:01:37]} 42. a3 {[%clk 0:01:33]}  Kg8 {[%clk 0:01:36]} 43. Ke4 {[%clk 0:01:33]}  Kh8 {[%clk 0:01:37]} 44. Kf5 {[%clk 0:01:33]}  Kh7 {[%clk 0:01:37]} 45. a4 {[%clk 0:01:32]}  Kg8 {[%clk 0:01:37]} 46. Ke4 {[%clk 0:01:32]}  Kh8 {[%clk 0:01:37]} 47. Kf5 {[%clk 0:01:30]}  Kh7 {[%clk 0:01:37]} 0-1


[Site "https://www.chess.com"]

[Event "Early Titled Tuesday Blitz | February 8 2022"]
[White "Kamsky, Gata"]
[Black "Sargsyan, Anna M."]
[WhiteFideId "2000024"]
[BlackFideId "13308130"]
[WhiteElo "2645"]
[BlackElo "2271"]
[Result "1-0"]
[Round "05"]
[TimeControl "180+1"]
[Date "2022.02.08"]
[WhiteClock "0:00:12"]
[BlackClock "0:00:08"]

1. e4 {[%clk 0:03:00]}  e5 {[%clk 0:01:23]} 2. Nf3 {[%clk 0:02:37]}  Nc6 {[%clk 0:01:21]} 3. Bb5 {[%clk 0:02:35]}  a6 {[%clk 0:01:21]} 4. Ba4 {[%clk 0:02:34]}  Nf6 {[%clk 0:01:22]} 5. O-O {[%clk 0:02:34]}  Nxe4 {[%clk 0:01:21]} 6. d4 {[%clk 0:02:31]}  b5 {[%clk 0:01:21]} 7. Bb3 {[%clk 0:02:31]}  d5 {[%clk 0:01:22]} 8. dxe5 {[%clk 0:02:31]}  Be6 {[%clk 0:01:22]} 9. Qe2 {[%clk 0:02:30]}  Be7 {[%clk 0:01:20]} 10. Rd1 {[%clk 0:02:29]}  Nc5 {[%clk 0:01:21]} 11. Be3 {[%clk 0:02:12]}  Nxb3 {[%clk 0:01:20]} 12. cxb3 {[%clk 0:02:11]}  O-O {[%clk 0:01:19]} 13. Nc3 {[%clk 0:02:04]}  Na5 {[%clk 0:01:11]} 14. Qd3 {[%clk 0:01:56]}  c6 {[%clk 0:01:09]} 15. h3 {[%clk 0:01:53]}  Rc8 {[%clk 0:01:08]} 16. Rac1 {[%clk 0:01:48]}  Qd7 {[%clk 0:01:07]} 17. Bg5 {[%clk 0:01:40]}  Nb7 {[%clk 0:01:05]} 18. Bxe7 {[%clk 0:01:38]}  Qxe7 {[%clk 0:01:06]} 19. Qe3 {[%clk 0:01:35]}  Rfd8 {[%clk 0:01:03]} 20. Qb6 {[%clk 0:01:21]}  c5 {[%clk 0:00:59]} 21. Qxa6 {[%clk 0:01:20]}  b4 {[%clk 0:00:59]} 22. Nb5 {[%clk 0:01:09]}  Ra8 {[%clk 0:00:56]} 23. Qb6 {[%clk 0:01:08]}  Rxa2 {[%clk 0:00:56]} 24. Nc7 {[%clk 0:01:04]}  Na5 {[%clk 0:00:52]} 25. Rxc5 {[%clk 0:01:03]}  Nxb3 {[%clk 0:00:50]} 26. Nxd5 {[%clk 0:00:59]}  Bxd5 {[%clk 0:00:50]} 27. Rcxd5 {[%clk 0:00:59]}  Rxd5 {[%clk 0:00:49]} 28. Rxd5 {[%clk 0:00:59]}  h6 {[%clk 0:00:49]} 29. Rd8+ {[%clk 0:00:57]}  Kh7 {[%clk 0:00:48]} 30. Qb8 {[%clk 0:00:53]}  Rxb2 {[%clk 0:00:41]} 31. Rh8+ {[%clk 0:00:52]}  Kg6 {[%clk 0:00:41]} 32. Qb6+ {[%clk 0:00:51]}  f6 {[%clk 0:00:35]} 33. Nh4+ {[%clk 0:00:49]}  Kh5 {[%clk 0:00:21]} 34. Nf3 {[%clk 0:00:29]}  Nd2 {[%clk 0:00:18]} 35. g4+ {[%clk 0:00:19]}  Kg6 {[%clk 0:00:18]} 36. Nh4+ {[%clk 0:00:18]}  Kg5 {[%clk 0:00:07]} 37. Qe3+ {[%clk 0:00:13]}  Kxh4 {[%clk 0:00:08]} 38. Rxh6+ {[%clk 0:00:12]} 1-0


[Site "https://www.chess.com"]

[Event "Early Titled Tuesday Blitz | February 8 2022"]
[White "Kanyamarala, Tarun"]
[Black "Boros, Denes"]
[WhiteFideId "45004714"]
[BlackFideId "722340"]
[WhiteElo "2144"]
[BlackElo "2464"]
[Result "0-1"]
[Round "05"]
[TimeControl "180+1"]
[Date "2022.02.08"]
[WhiteClock "0:01:06"]
[BlackClock "0:00:47"]

1. d4 {[%clk 0:03:00]}  d5 {[%clk 0:02:59]} 2. c4 {[%clk 0:03:01]}  Nf6 {[%clk 0:02:55]} 3. cxd5 {[%clk 0:03:00]}  Nxd5 {[%clk 0:02:55]} 4. e4 {[%clk 0:03:01]}  Nb6 {[%clk 0:02:56]} 5. Nc3 {[%clk 0:03:01]}  e5 {[%clk 0:02:56]} 6. Be3 {[%clk 0:02:52]}  exd4 {[%clk 0:02:53]} 7. Qxd4 {[%clk 0:02:52]}  Qxd4 {[%clk 0:02:51]} 8. Bxd4 {[%clk 0:02:53]}  Nc6 {[%clk 0:02:52]} 9. Bb5 {[%clk 0:02:53]}  Bd7 {[%clk 0:02:50]} 10. Bxc6 {[%clk 0:02:48]}  Bxc6 {[%clk 0:02:51]} 11. f3 {[%clk 0:02:48]}  O-O-O {[%clk 0:02:49]} 12. O-O-O {[%clk 0:02:48]}  Be7 {[%clk 0:02:44]} 13. Nge2 {[%clk 0:02:44]}  Nc4 {[%clk 0:02:36]} 14. Kc2 {[%clk 0:02:27]}  f6 {[%clk 0:02:20]} 15. Nf4 {[%clk 0:02:19]}  Rd7 {[%clk 0:02:20]} 16. Nfd5 {[%clk 0:02:14]}  Bd6 {[%clk 0:02:17]} 17. b3 {[%clk 0:01:51]}  Ne5 {[%clk 0:02:07]} 18. Bxe5 {[%clk 0:01:45]}  fxe5 {[%clk 0:02:03]} 19. Ne3 {[%clk 0:01:34]}  Bc5 {[%clk 0:01:54]} 20. Nc4 {[%clk 0:01:31]}  Re7 {[%clk 0:01:46]} 21. Nd5 {[%clk 0:01:29]}  Re6 {[%clk 0:01:44]} 22. Na5 {[%clk 0:01:28]}  Rg6 {[%clk 0:01:33]} 23. Rd2 {[%clk 0:01:24]}  Bxd5 {[%clk 0:01:28]} 24. Rxd5 {[%clk 0:01:22]}  Rxg2+ {[%clk 0:01:27]} 25. Kb1 {[%clk 0:01:23]}  Bd4 {[%clk 0:01:18]} 26. Nc4 {[%clk 0:01:21]}  c6 {[%clk 0:00:54]} 27. Rd6 {[%clk 0:01:21]}  b5 {[%clk 0:00:55]} 28. Na5 {[%clk 0:01:18]}  Rb2+ {[%clk 0:00:54]} 29. Kc1 {[%clk 0:01:19]}  Rxa2 {[%clk 0:00:54]} 30. Rxc6+ {[%clk 0:01:07]}  Kd7 {[%clk 0:00:54]} 31. Ra6 {[%clk 0:01:07]}  Rc8+ {[%clk 0:00:48]} 32. Kd1 {[%clk 0:01:06]}  Ra1+ {[%clk 0:00:47]} 33. Ke2 {[%clk 0:01:07]}  Rxh1 {[%clk 0:00:48]} 34. Rxa7+ {[%clk 0:01:06]}  Bxa7 {[%clk 0:00:47]} 0-1


[Site "https://www.chess.com"]

[Event "Early Titled Tuesday Blitz | February 8 2022"]
[White "Karabalis, Harilos"]
[Black "Ashiev, Eduard"]
[WhiteFideId "4621808"]
[BlackFideId "4130090"]
[WhiteElo "2168"]
[BlackElo "2004"]
[Result "1-0"]
[Round "05"]
[TimeControl "180+1"]
[Date "2022.02.08"]
[WhiteClock "0:00:55"]
[BlackClock "0:00:23"]

1. e4 {[%clk 0:03:00]}  e5 {[%clk 0:02:57]} 2. Nf3 {[%clk 0:03:00]}  Nc6 {[%clk 0:02:54]} 3. Bb5 {[%clk 0:03:00]}  Nge7 {[%clk 0:02:53]} 4. O-O {[%clk 0:03:00]}  g6 {[%clk 0:02:53]} 5. c3 {[%clk 0:03:00]}  Bg7 {[%clk 0:02:53]} 6. d4 {[%clk 0:03:00]}  exd4 {[%clk 0:02:52]} 7. cxd4 {[%clk 0:03:00]}  d5 {[%clk 0:02:52]} 8. e5 {[%clk 0:02:59]}  O-O {[%clk 0:02:52]} 9. h3 {[%clk 0:02:58]}  f6 {[%clk 0:02:48]} 10. exf6 {[%clk 0:02:52]}  Rxf6 {[%clk 0:02:46]} 11. Nc3 {[%clk 0:02:50]}  h6 {[%clk 0:02:43]} 12. Re1 {[%clk 0:02:48]}  Kh7 {[%clk 0:02:39]} 13. Ne5 {[%clk 0:02:45]}  Nf5 {[%clk 0:02:35]} 14. Bxc6 {[%clk 0:02:36]}  bxc6 {[%clk 0:02:34]} 15. Bf4 {[%clk 0:02:27]}  Bd7 {[%clk 0:02:25]} 16. Ng4 {[%clk 0:02:19]}  Rf8 {[%clk 0:02:20]} 17. Be5 {[%clk 0:02:18]}  Nd6 {[%clk 0:01:46]} 18. Bxg7 {[%clk 0:02:13]}  Kxg7 {[%clk 0:01:46]} 19. Qd2 {[%clk 0:02:10]}  Qg5 {[%clk 0:01:38]} 20. Qxg5 {[%clk 0:02:07]}  hxg5 {[%clk 0:01:37]} 21. Re7+ {[%clk 0:02:06]}  Rf7 {[%clk 0:01:37]} 22. Rae1 {[%clk 0:02:05]}  Re8 {[%clk 0:01:30]} 23. Rxf7+ {[%clk 0:01:52]}  Nxf7 {[%clk 0:01:28]} 24. Rxe8 {[%clk 0:01:51]}  Bxe8 {[%clk 0:01:28]} 25. Na4 {[%clk 0:01:35]}  Nd6 {[%clk 0:01:25]} 26. Ne3 {[%clk 0:01:29]}  Bd7 {[%clk 0:01:18]} 27. Nc5 {[%clk 0:01:27]}  Bc8 {[%clk 0:01:18]} 28. a4 {[%clk 0:01:25]}  Kf6 {[%clk 0:01:03]} 29. f3 {[%clk 0:01:22]}  Nf5 {[%clk 0:00:46]} 30. Nxf5 {[%clk 0:01:21]}  gxf5 {[%clk 0:00:46]} 31. Kf2 {[%clk 0:01:14]}  f4 {[%clk 0:00:44]} 32. a5 {[%clk 0:01:12]}  Kf5 {[%clk 0:00:40]} 33. b4 {[%clk 0:01:11]}  a6 {[%clk 0:00:39]} 34. g3 {[%clk 0:01:07]}  Kf6 {[%clk 0:00:36]} 35. Kg2 {[%clk 0:01:05]}  Kg6 {[%clk 0:00:33]} 36. Kh2 {[%clk 0:01:03]}  Kf6 {[%clk 0:00:30]} 37. g4 {[%clk 0:00:59]}  Kg6 {[%clk 0:00:27]} 38. Nd3 {[%clk 0:00:56]}  Bd7 {[%clk 0:00:23]} 39. Ne5+ {[%clk 0:00:55]} 1-0


[Site "https://www.chess.com"]

[Event "Early Titled Tuesday Blitz | February 8 2022"]
[White "Karavaeva, Olga"]
[Black "Alves Campelo, Danilo Cesar De L"]
[WhiteFideId "4124111"]
[BlackFideId "2123657"]
[WhiteElo "2105"]
[BlackElo "1994"]
[Result "1-0"]
[Round "05"]
[TimeControl "180+1"]
[Date "2022.02.08"]
[WhiteClock "0:00:25"]
[BlackClock "0:00:04"]

1. c4 {[%clk 0:03:00]}  Nf6 {[%clk 0:02:59]} 2. Nc3 {[%clk 0:03:00]}  c5 {[%clk 0:02:58]} 3. g3 {[%clk 0:03:00]}  Nc6 {[%clk 0:02:55]} 4. Bg2 {[%clk 0:03:00]}  g6 {[%clk 0:02:53]} 5. Nf3 {[%clk 0:03:00]}  d5 {[%clk 0:02:53]} 6. cxd5 {[%clk 0:02:59]}  Nxd5 {[%clk 0:02:54]} 7. Nxd5 {[%clk 0:02:59]}  Qxd5 {[%clk 0:02:54]} 8. O-O {[%clk 0:03:00]}  Bg7 {[%clk 0:02:54]} 9. d3 {[%clk 0:02:58]}  O-O {[%clk 0:02:54]} 10. Rb1 {[%clk 0:02:57]}  Qxa2 {[%clk 0:02:48]} 11. Be3 {[%clk 0:02:57]}  Nd4 {[%clk 0:02:33]} 12. Nxd4 {[%clk 0:02:44]}  cxd4 {[%clk 0:02:34]} 13. Bg5 {[%clk 0:02:42]}  e5 {[%clk 0:02:21]} 14. Ra1 {[%clk 0:02:29]}  Qe6 {[%clk 0:01:58]} 15. Qd2 {[%clk 0:02:28]}  Qb6 {[%clk 0:01:41]} 16. Ra4 {[%clk 0:02:16]}  f6 {[%clk 0:01:30]} 17. Bh6 {[%clk 0:02:14]}  Bxh6 {[%clk 0:01:30]} 18. Qxh6 {[%clk 0:02:15]}  Be6 {[%clk 0:01:25]} 19. Rfa1 {[%clk 0:02:01]}  a6 {[%clk 0:01:06]} 20. b4 {[%clk 0:01:59]}  Rac8 {[%clk 0:01:00]} 21. Bh3 {[%clk 0:01:54]}  Rc2 {[%clk 0:00:47]} 22. Bxe6+ {[%clk 0:01:40]}  Qxe6 {[%clk 0:00:48]} 23. b5 {[%clk 0:01:41]}  axb5 {[%clk 0:00:39]} 24. Rb4 {[%clk 0:01:41]}  Rxe2 {[%clk 0:00:35]} 25. Rxb5 {[%clk 0:01:40]}  Qf5 {[%clk 0:00:33]} 26. Rf1 {[%clk 0:01:18]}  Qf3 {[%clk 0:00:33]} 27. Rc5 {[%clk 0:01:13]}  Qh5 {[%clk 0:00:20]} 28. Qc1 {[%clk 0:00:59]}  Ra8 {[%clk 0:00:20]} 29. Qc4+ {[%clk 0:00:56]}  Kg7 {[%clk 0:00:19]} 30. Rc7+ {[%clk 0:00:54]}  Kh6 {[%clk 0:00:19]} 31. Qf7 {[%clk 0:00:52]}  Kg5 {[%clk 0:00:19]} 32. Rxb7 {[%clk 0:00:37]}  Raa2 {[%clk 0:00:16]} 33. Rb6 {[%clk 0:00:34]}  Qf3 {[%clk 0:00:11]} 34. Qxh7 {[%clk 0:00:26]}  Rxf2 {[%clk 0:00:04]} 35. Qh4+ {[%clk 0:00:25]}  Kf5 {[%clk 0:00:04]} 36. Rxf6# {[%clk 0:00:25]} 1-0


[Site "https://www.chess.com"]

[Event "Early Titled Tuesday Blitz | February 8 2022"]
[White "Kepeshchuk, Mykhaylo"]
[Black "Murzin, Volodar"]
[WhiteFideId "14113139"]
[BlackFideId "44155573"]
[WhiteElo "2279"]
[BlackElo "2585"]
[Result "0-1"]
[Round "05"]
[TimeControl "180+1"]
[Date "2022.02.08"]
[WhiteClock "0:00:02"]
[BlackClock "0:00:04"]

1. d4 {[%clk 0:03:00]}  Nf6 {[%clk 0:02:56]} 2. c4 {[%clk 0:03:00]}  g6 {[%clk 0:02:55]} 3. Nc3 {[%clk 0:03:00]}  Bg7 {[%clk 0:02:56]} 4. e4 {[%clk 0:03:00]}  O-O {[%clk 0:02:56]} 5. Nf3 {[%clk 0:03:01]}  d6 {[%clk 0:02:56]} 6. Be2 {[%clk 0:03:00]}  e5 {[%clk 0:02:57]} 7. d5 {[%clk 0:03:01]}  Na6 {[%clk 0:02:56]} 8. Be3 {[%clk 0:03:00]}  Ng4 {[%clk 0:02:54]} 9. Bg5 {[%clk 0:03:00]}  f6 {[%clk 0:02:54]} 10. Bh4 {[%clk 0:03:01]}  h5 {[%clk 0:02:54]} 11. Nd2 {[%clk 0:02:59]}  Nh6 {[%clk 0:02:53]} 12. f3 {[%clk 0:02:59]}  g5 {[%clk 0:02:52]} 13. Bf2 {[%clk 0:02:52]}  f5 {[%clk 0:02:51]} 14. h3 {[%clk 0:02:50]}  c5 {[%clk 0:02:27]} 15. a3 {[%clk 0:02:45]}  Nc7 {[%clk 0:02:25]} 16. Rb1 {[%clk 0:02:45]}  b6 {[%clk 0:02:25]} 17. b4 {[%clk 0:02:44]}  Bd7 {[%clk 0:02:20]} 18. Qc2 {[%clk 0:02:34]}  Qf6 {[%clk 0:02:16]} 19. Be3 {[%clk 0:02:20]}  Qg6 {[%clk 0:01:56]} 20. bxc5 {[%clk 0:02:17]}  bxc5 {[%clk 0:01:50]} 21. Rb7 {[%clk 0:02:16]}  Rfc8 {[%clk 0:01:43]} 22. Nb5 {[%clk 0:02:08]}  Nxb5 {[%clk 0:01:12]} 23. cxb5 {[%clk 0:02:09]}  Be8 {[%clk 0:01:12]} 24. Nc4 {[%clk 0:02:01]}  Rab8 {[%clk 0:01:12]} 25. Rxb8 {[%clk 0:02:00]}  Rxb8 {[%clk 0:01:12]} 26. a4 {[%clk 0:02:00]}  Bf8 {[%clk 0:01:09]} 27. exf5 {[%clk 0:01:47]}  Nxf5 {[%clk 0:00:06]} 28. Bd3 {[%clk 0:00:54]}  Nxe3 {[%clk 0:00:05]} 29. Bxg6 {[%clk 0:00:41]}  Nxc2+ {[%clk 0:00:06]} 30. Bxc2 {[%clk 0:00:42]}  Be7 {[%clk 0:00:04]} 31. g4 {[%clk 0:00:38]}  Kg7 {[%clk 0:00:03]} 32. Ke2 {[%clk 0:00:36]}  Kf6 {[%clk 0:00:03]} 33. Na5 {[%clk 0:00:30]}  Bd8 {[%clk 0:00:02]} 34. Nc6 {[%clk 0:00:30]}  Ra8 {[%clk 0:00:02]} 35. h4 {[%clk 0:00:18]}  gxh4 {[%clk 0:00:02]} 36. Rxh4 {[%clk 0:00:18]}  hxg4 {[%clk 0:00:01]} 37. fxg4 {[%clk 0:00:12]}  Kg5 {[%clk 0:00:01]} 38. Rh8 {[%clk 0:00:12]}  Bb6 {[%clk 0:00:02]} 39. Ne7 {[%clk 0:00:06]}  Bxb5+ {[%clk 0:00:01]} 40. axb5 {[%clk 0:00:05]}  Rxh8 {[%clk 0:00:02]} 41. Nf5 {[%clk 0:00:03]}  Rh2+ {[%clk 0:00:03]} 42. Kd1 {[%clk 0:00:02]}  c4 {[%clk 0:00:04]} 43. Nxd6 {[%clk 0:00:02]}  Ba5 {[%clk 0:00:04]} 44. Nxc4 {[%clk 0:00:02]}  Bc3 {[%clk 0:00:04]} 0-1


[Site "https://www.chess.com"]